fUST/lending_fUST_20240927
["ID","MTS","AMOUNT","RATE_DAILY","PERIOD"]
[339301501,1727442645070,-3000.0,0.0002127,2]
[339301503,1727442645079,-495.0,0.00021274,2]
[339301505,1727442645089,-3000.0,0.0002128,2]
[339301507,1727442645098,-3000.0,0.0002129,2]
[339301509,1727442645108,-150.112233,0.000213,2]
[339301511,1727442645117,-3000.0,0.000213,2]
[339301513,1727442645127,-495.0,0.00021301,2]
[339301515,1727442645137,-3000.0,0.0002131,2]
[339301517,1727442645146,-3000.0,0.0002132,2]
[339301529,1727442645252,-495.0,0.00021329,2]
[339301531,1727442645262,-3000.0,0.0002133,2]
[339301533,1727442645272,-3000.0,0.0002134,2]
[339301535,1727442645282,-3000.0,0.0002135,2]
[339301537,1727442645292,-495.0,0.00021356,2]
[339301539,1727442645305,-3000.0,0.0002136,2]
[339301541,1727442645315,-151.0,0.00021369,2]
[339301543,1727442645324,-268.090704,0.00021369,2]
[339301545,1727442645334,-268.090704,0.00021369,2]
[339301547,1727442645345,-200.069123,0.00021369,2]
[339301549,1727442645355,-200.069123,0.00021369,2]
[339301551,1727442645364,-151.0,0.00021369,2]
[339301553,1727442645375,-591.76,0.00021369,2]
[339301555,1727442645385,-939.76,0.00021369,2]
[339301557,1727442645395,-764.03,0.00021369,2]
[339301559,1727442645405,-942.5,0.00021369,2]
[339301561,1727442645415,-500.0,0.00021369,2]
[339301563,1727442645425,-500.0,0.00021369,2]
[339301565,1727442645434,-500.0,0.00021369,2]
[339301567,1727442645444,-886.6,0.00021369,2]
[339301569,1727442645453,-500.0,0.00021369,2]
[339301571,1727442645463,-1211.69,0.00021369,2]
[339301573,1727442645473,-1624.79,0.00021369,2]
[339301575,1727442645483,-200.0,0.00021369,2]
[339301577,1727442645493,-500.0,0.00021369,2]
[339301579,1727442645503,-1101.06,0.00021369,2]
[339301582,1727442645513,-500.0,0.00021369,2]
[339301584,1727442645523,-500.0,0.00021369,2]
[339301585,1727442645533,-957.37,0.00021369,2]
[339301587,1727442645543,-13150.91,0.00021369,2]
[339301589,1727442645553,-2463.96,0.00021369,2]
[339301591,1727442645563,-500.0,0.00021369,2]
[339301593,1727442645572,-1534.8,0.00021369,2]
[339301595,1727442645581,-3000.0,0.0002137,2]
[339301597,1727442645592,-6491.31779664,0.00021372,2]
[339301599,1727442645601,-3000.0,0.0002138,2]
[339301601,1727442645610,-495.0,0.00021384,2]
[339301603,1727442645619,-3000.0,0.0002139,2]
[339301605,1727442645628,-3000.0,0.000214,2]
[339301607,1727442645638,-153.946,0.00021406,2]
[339301609,1727442645648,-555.385,0.00021406,2]
[339301610,1727442645657,-1239.341,0.00021406,2]
[339301611,1727442645667,-3000.0,0.0002141,2]
[339301612,1727442645678,-495.0,0.00021411,2]
[339301613,1727442645687,-1500.0,0.00021414,2]
[339301614,1727442645697,-1500.0,0.00021414,2]
[339301615,1727442645706,-3000.0,0.0002142,2]
[339301617,1727442645715,-3000.0,0.0002143,2]
[339301619,1727442645723,-495.0,0.00021438,2]
[339301621,1727442645733,-3000.0,0.0002144,2]
[339301623,1727442645743,-3000.0,0.0002145,2]
[339301625,1727442645754,-3000.0,0.0002146,2]
[339301627,1727442645765,-495.0,0.00021466,2]
[339301629,1727442645774,-5506.029793,0.0002147,2]
[339301631,1727442645783,-495.0,0.00021493,2]
[339301633,1727442645794,-495.0,0.00021521,2]
[339301635,1727442645803,-495.0,0.00021548,2]
[339301637,1727442645814,-495.0,0.00021575,2]
[339301640,1727442645827,-495.0,0.00021603,2]
[339301642,1727442645838,-2919.77508387,0.00021605,2]
[339301644,1727442645848,-1000.0,0.00021621,2]
[339301646,1727442645858,-549.04192041,0.00021621,2]
[339301648,1727442645868,-1000.0,0.00021621,2]
[339301650,1727442645878,-404.86682683,0.00021621,2]
[339301652,1727442645889,-517.0,0.0002163,2]
[339301654,1727442645898,-591.76,0.00021643,2]
[339301656,1727442645907,-939.76,0.00021643,2]
[339301659,1727442645917,-764.03,0.00021643,2]
[339301662,1727442645926,-942.5,0.00021643,2]
[339301664,1727442645936,-500.0,0.00021643,2]
[339301666,1727442645945,-500.0,0.00021643,2]
[339301668,1727442645954,-886.6,0.00021643,2]
[339301670,1727442645963,-500.0,0.00021643,2]
[339301672,1727442645973,-1211.69,0.00021643,2]
[339301674,1727442645982,-1624.79,0.00021643,2]
[339301676,1727442645992,-200.0,0.00021643,2]
[339301678,1727442646003,-500.0,0.00021643,2]
[339301680,1727442646013,-1101.06,0.00021643,2]
[339301682,1727442646023,-500.0,0.00021643,2]
[339301684,1727442646034,-957.37,0.00021643,2]
[339301686,1727442646043,-13150.91,0.00021643,2]
[339301688,1727442646053,-2463.96,0.00021643,2]
[339301690,1727442646064,-500.0,0.00021643,2]
[339301692,1727442646075,-1534.8,0.00021643,2]
[339301694,1727442646086,-424.014165,0.00021711,2]
[339301696,1727442646097,-424.014165,0.00021711,2]
[339301698,1727442646108,-174.792925,0.00021711,2]
[339301701,1727442646119,-409.399505,0.00021721,2]
[339301703,1727442646129,-409.399505,0.00021721,2]
[339301705,1727442646141,-261.754001,0.00021721,2]
[339301707,1727442646151,-151.0,0.00021721,2]
[339301709,1727442646162,-151.0,0.00021721,2]
[339301711,1727442646171,-151.0,0.00021721,2]
[339301713,1727442646180,-154.098856,0.00021721,2]
[339301715,1727442646190,-6491.31779664,0.00021768,2]
[339301717,1727442646200,-287.0,0.0002178,5]
[339301719,1727442646210,-2500.0,0.00021886,2]
[339301721,1727442646220,-154.116747,0.00021891,2]
[339301723,1727442646229,-154.116747,0.00021891,2]
[339301725,1727442646238,-151.0,0.00021891,2]
[339301727,1727442646248,-232.96014,0.00021891,2]
[339301729,1727442646257,-2500.0,0.00021894,2]
[339301731,1727442646268,-150.112233,0.000219,5]
[339301733,1727442646277,-300.349862,0.000219,9]
[339301735,1727442646286,-608.0,0.000219,2]
[339301736,1727442646299,-796.427013,0.00021903,2]
[339301738,1727442646309,-796.427013,0.00021903,2]
[339301740,1727442646318,-151.0,0.00021903,2]
[339301742,1727442646327,-338.144571,0.00021903,2]
[339301744,1727442646337,-338.144571,0.00021903,2]
[339301746,1727442646346,-2500.0,0.00021903,2]
[339301748,1727442646355,-1152.0,0.00021911,2]
[339301750,1727442646364,-2500.0,0.00021912,2]
[339301752,1727442646376,-1091.980695,0.00021912,2]
[339301755,1727442646389,-1091.980695,0.00021912,2]
[339301757,1727442646403,-268.090704,0.00021917,2]
[339301760,1727442646417,-268.090704,0.00021917,2]
[339301762,1727442646428,-591.76,0.00021917,2]
[339301764,1727442646439,-501.84482045,0.00021917,2]
[339301766,1727442646452,-939.76,0.00021917,2]
[339301769,1727442646464,-764.03,0.00021917,2]
[339301771,1727442646477,-942.5,0.00021917,2]
[339301773,1727442646489,-500.0,0.00021917,2]
[339301776,1727442646503,-500.0,0.00021917,2]
[339301778,1727442646515,-509.13708894,0.00021917,2]
[339301780,1727442646528,-500.0,0.00021917,2]
[339301782,1727442646541,-886.6,0.00021917,2]
[339301785,1727442646552,-500.0,0.00021917,2]
[339301787,1727442646565,-721.36,0.00021917,2]
[339301789,1727442646577,-721.36,0.00021917,2]
[339301791,1727442646589,-721.36,0.00021917,2]
[339301794,1727442646602,-721.36,0.00021917,2]
[339301796,1727442646615,-721.36,0.00021917,2]
[339301798,1727442646627,-721.36,0.00021917,2]
[339301800,1727442646638,-721.36,0.00021917,2]
[339301802,1727442646648,-721.36,0.00021917,2]
[339301804,1727442646659,-721.36,0.00021917,2]
[339301806,1727442646671,-721.36,0.00021917,2]
[339301809,1727442646683,-721.36,0.00021917,2]
[339301811,1727442646696,-721.36,0.00021917,2]
[339301813,1727442646708,-721.36,0.00021917,2]
[339301815,1727442646720,-721.36,0.00021917,2]
[339301818,1727442646733,-721.36,0.00021917,2]
[339301820,1727442646746,-721.36,0.00021917,2]
[339301823,1727442646759,-721.36,0.00021917,2]
[339301825,1727442646772,-721.36,0.00021917,2]
[339301827,1727442646782,-721.36,0.00021917,2]
[339301829,1727442646792,-721.36,0.00021917,2]
[339301831,1727442646802,-721.36,0.00021917,2]
[339301833,1727442646813,-721.36,0.00021917,2]
[339301835,1727442646826,-721.36,0.00021917,2]
[339301838,1727442646840,-721.46746821,0.00021917,2]
[339301840,1727442646852,-500.0,0.00021917,2]
[339301842,1727442646862,-1211.69,0.00021917,2]
[339301844,1727442646875,-1000.0,0.00021917,5]
[339301846,1727442646886,-1000.0,0.00021917,5]
[339301848,1727442646898,-1000.0,0.00021917,5]
[339301851,1727442646910,-1000.0,0.00021917,5]
[339301852,1727442646920,-818.45250916,0.00021917,5]
[339301854,1727442646931,-1624.79,0.00021917,2]
[339301856,1727442646941,-200.0,0.00021917,2]
[339301858,1727442646951,-500.0,0.00021917,2]
[339301860,1727442646962,-1101.06,0.00021917,2]
[339301862,1727442646973,-295.737665,0.00021917,2]
[339301865,1727442646983,-295.737665,0.00021917,2]
[339301867,1727442646994,-151.0,0.00021917,2]
[339301869,1727442647005,-500.0,0.00021917,2]
[339301871,1727442647016,-957.37,0.00021917,2]
[339301873,1727442647026,-151.0,0.00021917,2]
[339301875,1727442647037,-13150.91,0.00021917,2]
[339301877,1727442647048,-236.497999,0.00021917,2]
[339301879,1727442647058,-236.497999,0.00021917,2]
[339301880,1727442647069,-153.878552,0.00021917,2]
[339301881,1727442647080,-2463.96,0.00021917,2]
[339301882,1727442647094,-500.0,0.00021917,2]
[339301883,1727442647105,-1534.8,0.00021917,2]
[339301884,1727442647116,-239.90603,0.00021918,7]
[339301886,1727442647126,-200.069123,0.00021918,7]
[339301887,1727442647137,-200.069123,0.00021918,7]
[339301889,1727442647147,-151.0,0.00021918,7]
[339301891,1727442647158,-163.95779533,0.0002192,7]
[339301894,1727442647169,-163.95779533,0.0002192,7]
[339301896,1727442647180,-163.95779533,0.0002192,7]
[339301898,1727442647192,-163.95779533,0.0002192,7]
[339301900,1727442647203,-163.95779533,0.0002192,7]
[339301902,1727442647215,-163.95779533,0.0002192,7]
[339301904,1727442647225,-163.95779533,0.0002192,7]
[339301907,1727442647236,-163.95779533,0.0002192,7]
[339301909,1727442647246,-163.95779533,0.0002192,7]
[339301911,1727442647256,-164.45,0.0002192,7]
[339301913,1727442647267,-327.99059066,0.0002192,7]
[339301915,1727442647278,-327.99059066,0.0002192,7]
[339301917,1727442647289,-327.99059066,0.0002192,7]
[339301920,1727442647304,-327.99059066,0.0002192,7]
[339301922,1727442647314,-327.99059066,0.0002192,7]
[339301924,1727442647325,-327.99059066,0.0002192,7]
[339301926,1727442647336,-327.99059066,0.0002192,7]
[339301928,1727442647347,-327.99059066,0.0002192,7]
[339301930,1727442647359,-327.99059066,0.0002192,7]
[339301932,1727442647371,-327.99059066,0.0002192,7]
[339301935,1727442647384,-327.99059066,0.0002192,7]
[339301937,1727442647396,-2500.0,0.00021921,2]
[339301939,1727442647408,-2500.0,0.0002193,2]
[339301941,1727442647419,-855.93172557,0.0002193,2]
[339301944,1727442647430,-150.0,0.00021973,2]
[339301946,1727442647442,-466.16610592,0.00021981,2]
[339301948,1727442647455,-327.99059066,0.00021984,7]
[339301950,1727442647468,-254.0,0.00022,2]
[339301953,1727442647480,-677.0,0.00022,2]
[339301955,1727442647493,-302.48582854,0.00022,2]
[339301958,1727442647506,-200.0,0.00022,2]
[339301960,1727442647517,-302.45563732,0.00022,2]
[339301962,1727442647529,-340.0,0.00022,2]
[339301964,1727442647540,-6491.31779664,0.00022087,2]
[339301967,1727442647551,-327.99059066,0.00022099,7]
[339301969,1727442647563,-591.76,0.00022191,2]
[339301971,1727442647574,-939.76,0.00022191,2]
[339301973,1727442647585,-764.03,0.00022191,2]
[339301975,1727442647597,-942.5,0.00022191,2]
[339301977,1727442647608,-500.0,0.00022191,2]
[339301979,1727442647619,-500.0,0.00022191,2]
[339301982,1727442647631,-886.6,0.00022191,2]
[339301984,1727442647641,-500.0,0.00022191,2]
[339301986,1727442647650,-1211.69,0.00022191,2]
[339301988,1727442647660,-1624.79,0.00022191,2]
[339301989,1727442647669,-200.0,0.00022191,2]
[339301991,1727442647678,-500.0,0.00022191,2]
[339302008,1727442647827,-1101.06,0.00022191,2]
[339302010,1727442647843,-500.0,0.00022191,2]
[339302012,1727442647852,-957.37,0.00022191,2]
[339302014,1727442647861,-13150.91,0.00022191,2]
[339302016,1727442647871,-2463.96,0.00022191,2]
[339302018,1727442647880,-500.0,0.00022191,2]
[339302019,1727442647889,-1534.8,0.00022191,2]
[339302020,1727442647898,-254.0,0.00022192,2]
[339302021,1727442647907,-677.0,0.00022192,2]
[339302022,1727442647916,-340.0,0.00022192,2]
[339302023,1727442647925,-151.0,0.00022192,2]
[339302024,1727442647934,-2000.0,0.00022203,2]
[339302025,1727442647943,-2000.0,0.00022203,2]
[339302026,1727442647953,-300.404,0.00022208,2]
[339302027,1727442647962,-3212.243,0.00022208,2]
[339302028,1727442647971,-327.99059066,0.00022213,7]
[339302029,1727442647981,-302.48582854,0.0002222,2]
[339302030,1727442647990,-302.45563732,0.0002222,2]
[339302031,1727442648000,-6491.31779664,0.00022286,2]
[339302032,1727442648010,-327.99059066,0.00022328,7]
[339302033,1727442648019,-262.35831402,0.00022331,2]
[339302034,1727442648029,-500.0,0.00022331,2]
[339302035,1727442648038,-1152.0,0.00022386,2]
[339302036,1727442648047,-150.112233,0.000224,4]
[339302037,1727442648056,-302.48582854,0.0002244,2]
[339302038,1727442648065,-302.45563732,0.0002244,2]
[339302039,1727442648075,-327.99059066,0.00022442,7]
[339302040,1727442648084,-591.76,0.00022465,2]
[339302041,1727442648095,-939.76,0.00022465,2]
[339302042,1727442648104,-764.03,0.00022465,2]
[339302043,1727442648114,-942.5,0.00022465,2]
[339302044,1727442648123,-500.0,0.00022465,2]
[339302045,1727442648133,-500.0,0.00022465,2]
[339302047,1727442648142,-886.6,0.00022465,2]
[339302048,1727442648151,-500.0,0.00022465,2]
[339302050,1727442648161,-1211.69,0.00022465,2]
[339302052,1727442648171,-1624.79,0.00022465,2]
[339302054,1727442648180,-200.0,0.00022465,2]
[339302056,1727442648190,-500.0,0.00022465,2]
[339302058,1727442648199,-321.508311,0.00022465,7]
[339302060,1727442648209,-1101.06,0.00022465,2]
[339302062,1727442648218,-321.508311,0.00022465,7]
[339302064,1727442648227,-151.0,0.00022465,7]
[339302066,1727442648236,-151.0,0.00022465,7]
[339302068,1727442648245,-277.276796,0.00022465,7]
[339302070,1727442648255,-285.603899,0.00022465,7]
[339302071,1727442648264,-500.0,0.00022465,2]
[339302073,1727442648272,-285.603899,0.00022465,7]
[339302075,1727442648281,-957.37,0.00022465,2]
[339302077,1727442648292,-13150.91,0.00022465,2]
[339302079,1727442648303,-2463.96,0.00022465,2]
[339302081,1727442648311,-474.07926372,0.00022465,2]
[339302083,1727442648321,-1534.8,0.00022465,2]
[339302085,1727442648330,-677.0,0.00022466,2]
[339302087,1727442648340,-153.0,0.00022499,2]
[339302089,1727442648350,-151.0,0.000225,7]
[339302091,1727442648359,-151.0,0.000225,7]
[339302093,1727442648367,-151.0,0.000225,7]
[339302095,1727442648376,-151.0,0.000225,7]
[339302097,1727442648386,-151.0,0.000225,7]
[339302099,1727442648396,-1000.0,0.000225,2]
[339302101,1727442648405,-151.0,0.00022517,7]
[339302103,1727442648414,-151.0,0.00022517,7]
[339302105,1727442648423,-299.79874,0.00022517,7]
[339302107,1727442648432,-299.79874,0.00022517,7]
[339302109,1727442648442,-250.0,0.00022521,2]
[339302111,1727442648451,-153.0,0.00022548,2]
[339302113,1727442648460,-209.1919512,0.00022548,2]
[339302115,1727442648470,-327.99059066,0.00022557,7]
[339302117,1727442648481,-6491.31779669,0.0002257,2]
[339302119,1727442648490,-150.0,0.0002258,2]
[339302120,1727442648499,-152.79482226,0.00022608,2]
[339302122,1727442648508,-226.332135,0.00022657,7]
[339302124,1727442648517,-226.332135,0.00022657,7]
[339302126,1727442648526,-151.0,0.00022657,7]
[339302128,1727442648535,-169.900306,0.00022657,2]
[339302130,1727442648544,-170.673645,0.00022657,2]
[339302132,1727442648553,-162.947674,0.00022657,2]
[339302134,1727442648565,-162.218996,0.00022657,2]
[339302136,1727442648574,-215.002719,0.00022657,2]
[339302138,1727442648584,-250.346487,0.00022657,2]
[339302140,1727442648593,-162.947674,0.00022657,2]
[339302142,1727442648603,-217.065369,0.00022657,2]
[339302144,1727442648612,-165.38443,0.00022657,2]
[339302146,1727442648622,-187.582943,0.00022657,2]
[339302148,1727442648632,-162.218996,0.00022657,2]
[339302150,1727442648641,-251.237439,0.00022657,2]
[339302152,1727442648651,-161.301256,0.00022657,2]
[339302154,1727442648660,-151.0,0.0002266,2]
[339302156,1727442648669,-302.48582854,0.0002266,2]
[339302158,1727442648678,-302.45563732,0.0002266,2]
[339302160,1727442648687,-327.99059066,0.00022671,7]
[339302162,1727442648697,-268.090704,0.00022739,7]
[339302164,1727442648706,-268.090704,0.00022739,7]
[339302166,1727442648715,-591.76,0.00022739,2]
[339302168,1727442648725,-939.76,0.00022739,2]
[339302170,1727442648734,-764.03,0.00022739,2]
[339302172,1727442648744,-942.5,0.00022739,2]
[339302174,1727442648753,-500.0,0.00022739,2]
[339302176,1727442648762,-500.0,0.00022739,2]
[339302178,1727442648772,-886.6,0.00022739,2]
[339302180,1727442648782,-500.0,0.00022739,2]
[339302182,1727442648791,-1211.69,0.00022739,2]
[339302184,1727442648801,-1624.79,0.00022739,2]
[339302186,1727442648811,-200.0,0.00022739,2]
[339302188,1727442648820,-500.0,0.00022739,2]
[339302190,1727442648829,-1101.06,0.00022739,2]
[339302191,1727442648838,-500.0,0.00022739,2]
[339302194,1727442648849,-957.37,0.00022739,2]
[339302196,1727442648858,-13150.91,0.00022739,2]
[339302198,1727442648867,-2463.96,0.00022739,2]
[339302199,1727442648876,-1534.8,0.00022739,2]
[339302201,1727442648885,-677.0,0.0002274,2]
[339302203,1727442648895,-1000.0,0.00022751,2]
[339302205,1727442648906,-327.99059066,0.00022786,7]
[339302207,1727442648915,-1000.0,0.00022808,2]
[339302209,1727442648925,-302.48582854,0.0002288,2]
[339302211,1727442648934,-302.45563732,0.0002288,2]
[339302213,1727442648944,-244.6405,0.00022885,2]
[339302215,1727442648953,-213.6,0.000229,31]
[339302217,1727442648962,-213.6,0.000229,31]
[339302219,1727442648971,-213.6,0.000229,31]
[339302221,1727442648981,-213.6,0.000229,31]
[339302224,1727442648990,-213.6,0.000229,31]
[339302225,1727442648999,-213.6,0.000229,31]
[339302227,1727442649009,-213.6,0.000229,31]
[339302229,1727442649018,-213.6,0.000229,31]
[339302231,1727442649027,-213.6,0.000229,31]
[339302233,1727442649037,-213.6,0.000229,31]
[339302236,1727442649046,-213.6,0.000229,31]
[339302238,1727442649056,-213.6,0.000229,31]
[339302240,1727442649066,-213.6,0.000229,31]
[339302242,1727442649075,-213.6,0.000229,31]
[339302244,1727442649085,-213.6,0.000229,31]
[339302246,1727442649095,-213.6,0.000229,31]
[339302248,1727442649104,-328.49,0.000229,7]
[339302250,1727442649113,-187.32,0.000229,7]
[339302252,1727442649122,-1127.59326461,0.00022924,2]
[339302254,1727442649133,-215.002719,0.00022941,2]
[339302256,1727442649144,-250.346487,0.00022941,2]
[339302258,1727442649154,-183.376218,0.00022989,7]
[339302260,1727442649164,-183.376218,0.00022989,7]
[339302262,1727442649173,-151.0,0.00022989,7]
[339302264,1727442649183,-367.781189,0.00022989,7]
[339302266,1727442649192,-367.781189,0.00022989,7]
[339302268,1727442649201,-520.384179,0.00022989,7]
[339302270,1727442649210,-520.384179,0.00022989,7]
[339302272,1727442649219,-151.0,0.00022989,7]
[339302274,1727442649228,-282.399868,0.00022989,7]
[339302276,1727442649238,-282.399868,0.00022989,7]
[339302278,1727442649247,-151.0,0.00022989,7]
[339302280,1727442649256,-265.923719,0.00022989,7]
[339302282,1727442649265,-151.0,0.00022989,7]
[339302284,1727442649275,-265.923719,0.00022989,7]
[339302286,1727442649285,-151.0,0.00022989,7]
[339302288,1727442649297,-151.0,0.00022989,7]
[339302290,1727442649307,-151.0,0.00022989,7]
[339302292,1727442649317,-384.809038,0.00022989,7]
[339302294,1727442649327,-384.809038,0.00022989,7]
[339302296,1727442649337,-389.380719,0.00022989,7]
[339302298,1727442649348,-250.967248,0.00022989,7]
[339302300,1727442649358,-389.380719,0.00022989,7]
[339302302,1727442649368,-250.967248,0.00022989,7]
[339302304,1727442649377,-819.716364,0.00022989,7]
[339302306,1727442649388,-819.716364,0.00022989,7]
[339302308,1727442649397,-8458.04982923,0.00022999,2]
[339302310,1727442649406,-177.36163147,0.00022999,2]
[339302312,1727442649417,-160.0,0.00022999,2]
[339302314,1727442649426,-160.0,0.00022999,2]
[339302316,1727442649435,-76887.95364307,0.00023,2]
[339302319,1727442649455,-252.68,0.00023,2]
[339302329,1727442649535,-174.792925,0.00020821,2]
[339302331,1727442649545,-174.792925,0.00021155,2]
[339302333,1727442649555,-892.16547697,0.00023,2]
[339302335,1727442649567,-261679.40159567,0.00023,2]
[339302337,1727442649577,-151.0,0.00023,7]
[339302339,1727442649587,-151.0,0.00023,7]
[339302341,1727442649604,-845.154898,0.00023,7]
[339302343,1727442649615,-845.154898,0.00023,7]
[339302345,1727442649625,-208.195853,0.00023,7]
[339302347,1727442649635,-208.195853,0.00023,7]
[339302349,1727442649645,-268.090704,0.00023,7]
[339302351,1727442649654,-268.090704,0.00023,7]
[339302353,1727442649663,-200.069123,0.00023,7]
[339302355,1727442649672,-200.069123,0.00023,7]
[339302357,1727442649683,-151.0,0.00023,7]
[339302359,1727442649693,-151.0,0.00023,7]
[339302361,1727442649702,-151.0,0.00023,7]
[339302363,1727442649712,-151.0,0.00023,7]
[339302365,1727442649721,-151.0,0.00023,7]
[339302368,1727442649731,-151.0,0.00023,7]
[339302370,1727442649741,-151.0,0.00023,7]
[339302372,1727442649750,-183.376218,0.00023,7]
[339302374,1727442649760,-183.376218,0.00023,7]
[339302376,1727442649769,-195.918373,0.00023,7]
[339302378,1727442649779,-1465.01080061,0.00023,7]
[339302380,1727442649790,-367.781189,0.00023,7]
[339302382,1727442649799,-367.781189,0.00023,7]
[339302384,1727442649809,-520.384179,0.00023,7]
[339302386,1727442649818,-520.384179,0.00023,7]
[339302388,1727442649829,-151.0,0.00023,7]
[339302390,1727442649839,-282.399868,0.00023,7]
[339302392,1727442649850,-282.399868,0.00023,7]
[339302394,1727442649859,-151.0,0.00023,7]
[339302396,1727442649869,-265.923719,0.00023,7]
[339302398,1727442649880,-151.0,0.00023,7]
[339302401,1727442649891,-265.923719,0.00023,7]
[339302403,1727442649900,-151.0,0.00023,7]
[339302405,1727442649909,-163.615854,0.00023,7]
[339302407,1727442649920,-270.846688,0.00023,7]
[339302409,1727442649931,-384.809038,0.00023,7]
[339302411,1727442649941,-226.332135,0.00023,7]
[339302413,1727442649951,-384.809038,0.00023,7]
[339302415,1727442649962,-226.332135,0.00023,7]
[339302417,1727442649971,-152.187776,0.00023,7]
[339302420,1727442649983,-151.0,0.00023,7]
[339302422,1727442649993,-151.0,0.00023,7]
[339302424,1727442650003,-151.0,0.00023,7]
[339302426,1727442650012,-151.0,0.00023,7]
[339302428,1727442650023,-151.0,0.00023,7]
[339302430,1727442650034,-389.380719,0.00023,7]
[339302432,1727442650045,-250.967248,0.00023,7]
[339302434,1727442650055,-151.0,0.00023,7]
[339302436,1727442650066,-389.380719,0.00023,7]
[339302439,1727442650077,-250.967248,0.00023,7]
[339302441,1727442650088,-299.79874,0.00023,7]
[339302443,1727442650108,-151.0,0.00023,7]
[339302445,1727442650118,-299.79874,0.00023,7]
[339302447,1727442650127,-321.508311,0.00023,7]
[339302449,1727442650136,-321.508311,0.00023,7]
[339302451,1727442650145,-151.0,0.00023,7]
[339302453,1727442650155,-295.737665,0.00023,7]
[339302455,1727442650165,-295.737665,0.00023,7]
[339302457,1727442650174,-151.0,0.00023,7]
[339302459,1727442650183,-819.716364,0.00023,7]
[339302461,1727442650193,-151.0,0.00023,7]
[339302463,1727442650206,-819.716364,0.00023,7]
[339302465,1727442650217,-285.603899,0.00023,7]
[339302467,1727442650226,-285.603899,0.00023,7]
[339302469,1727442650236,-151.0,0.00023,7]
[339302471,1727442650246,-1091.980695,0.00023,7]
[339302473,1727442650255,-1091.980695,0.00023,7]
[339302475,1727442650264,-150.0,0.00023,2]
[339302477,1727442650274,-236.497999,0.00023,7]
[339302479,1727442650284,-236.497999,0.00023,7]
[339302481,1727442650295,-409.399505,0.00023,7]
[339302483,1727442650305,-409.399505,0.00023,7]
[339302486,1727442650316,-151.0,0.00023,7]
[339302488,1727442650325,-151.0,0.00023,7]
[339302490,1727442650335,-151.0,0.00023,7]
[339302491,1727442650345,-796.427013,0.00023,7]
[339302493,1727442650355,-796.427013,0.00023,7]
[339302495,1727442650364,-154.116747,0.00023,7]
[339302498,1727442650374,-154.116747,0.00023,7]
[339302499,1727442650384,-424.014165,0.00023,7]
[339302501,1727442650394,-151.0,0.00023,7]
[339302503,1727442650403,-338.144571,0.00023,7]
[339302505,1727442650412,-424.014165,0.00023,7]
[339302507,1727442650423,-338.144571,0.00023,7]
[339302509,1727442650433,-200.0,0.00023,2]
[339302511,1727442650443,-307.3851242,0.00023,2]
[339302513,1727442650452,-197.006377,0.00023,7]
[339302515,1727442650462,-174.792925,0.00023,7]
[339302517,1727442650471,-232.96014,0.00023,7]